fUSD/lending_fUSD_20240211
["ID","MTS","AMOUNT","RATE_DAILY","PERIOD"]
[313742619,1707654642827,-38854.826281,0.00035342,2]
[313742621,1707654642836,-174582.088949,0.00035342,2]
[313742623,1707654642845,-17502.0,0.000354,3]
[313742625,1707654642854,-2856.63251527,0.00035432,2]
[313742627,1707654642864,-500.0,0.00035465,5]
[313742629,1707654642873,-548.0,0.00035465,5]
[313742631,1707654642882,-782.70808294,0.000355,2]
[313742633,1707654642891,-1021.0,0.000355,5]
[313742635,1707654642900,-1000.0,0.00035561,2]
[313742638,1707654642909,-3000.0,0.000356,2]
[313742641,1707654642919,-11082.879225,0.000356,2]
[313742644,1707654642928,-200.0,0.00035607,3]
[313742647,1707654642937,-800.0,0.00035607,2]
[313742651,1707654642946,-500.0,0.00035616,4]
[313742654,1707654642955,-1000.0,0.00035616,7]
[313742659,1707654642964,-1000.0,0.00035616,7]
[313742662,1707654642972,-1000.0,0.00035616,7]
[313742665,1707654642982,-1000.0,0.00035616,7]
[313742667,1707654642995,-1000.0,0.00035616,7]
[313742669,1707654643004,-1000.0,0.00035616,7]
[313742671,1707654643013,-1000.0,0.00035616,7]
[313742674,1707654643022,-1000.0,0.00035616,7]
[313742677,1707654643031,-1000.0,0.00035616,7]
[313742680,1707654643040,-1000.0,0.00035616,7]
[313742682,1707654643049,-1000.0,0.00035616,7]
[313742684,1707654643058,-1000.0,0.00035616,7]
[313742686,1707654643070,-1000.0,0.00035616,7]
[313742688,1707654643079,-1000.0,0.00035616,7]
[313742690,1707654643088,-1000.0,0.00035616,7]
[313742692,1707654643098,-1000.0,0.00035616,7]
[313742695,1707654643107,-1000.0,0.00035616,7]
[313742697,1707654643116,-1000.0,0.00035616,7]
[313742698,1707654643125,-1000.0,0.00035616,7]
[313742700,1707654643133,-1000.0,0.00035616,7]
[313742702,1707654643143,-1000.0,0.00035616,7]
[313742704,1707654643152,-1000.0,0.00035616,7]
[313742706,1707654643161,-1000.0,0.00035616,7]
[313742708,1707654643206,-1000.0,0.00035616,7]
[313742711,1707654643215,-1000.0,0.00035616,7]
[313742714,1707654643225,-1000.0,0.00035616,7]
[313742716,1707654643234,-1000.0,0.00035616,7]
[313742719,1707654643243,-1000.0,0.00035616,7]
[313742721,1707654643252,-1000.0,0.00035616,7]
[313742723,1707654643261,-1000.0,0.00035616,7]
[313742725,1707654643270,-825.0,0.00035616,7]
[313742727,1707654643278,-9259.75,0.00035616,2]
[313742729,1707654643288,-8576.6,0.00035616,2]
[313742731,1707654643297,-214.96,0.00035724,2]
[313742733,1707654643306,-10000.0,0.00035798,2]
[313742735,1707654643315,-150.0,0.00035798,2]
[313742737,1707654643324,-17502.0,0.000358,5]
[313742739,1707654643333,-1000.0,0.0003589,120]
[313742741,1707654643342,-150.0,0.00035905,2]
[313742743,1707654643352,-299.91078439,0.00036,4]
[313742745,1707654643361,-600.0,0.00036,37]
[313742747,1707654643370,-12587.00635277,0.00036,2]
[313742749,1707654643379,-15516.030916,0.00036,2]
[313742751,1707654643388,-150.0,0.00036013,2]
[313742754,1707654643397,-150.0,0.00036013,2]
[313742756,1707654643406,-151.0,0.00036013,7]
[313742757,1707654643415,-290.715237,0.00036013,7]
[313742759,1707654643424,-280449.25370473,0.00036014,2]
[313742761,1707654643433,-500.0,0.00036027,6]
[313742763,1707654643442,-150.0,0.00036036,2]
[313742765,1707654643451,-150.0,0.00036039,2]
[313742789,1707654643650,-150.0,0.0003609,2]
[313742791,1707654643659,-533.73,0.00036142,2]
[313742793,1707654643668,-261.49,0.00036142,2]
[313742795,1707654643677,-418.26,0.00036142,2]
[313742797,1707654643686,-150.0,0.00036142,2]
[313742799,1707654643695,-181.69,0.00036142,2]
[313742801,1707654643704,-342.41,0.00036142,2]
[313742803,1707654643713,-272.75,0.00036142,2]
[313742804,1707654643722,-420.38,0.00036142,2]
[313742806,1707654643732,-151.22,0.00036142,2]
[313742808,1707654643742,-411.41,0.00036142,2]
[313742809,1707654643750,-421.81,0.00036142,2]
[313742810,1707654643759,-150.0,0.00036142,2]
[313742811,1707654643768,-418.26,0.00036142,2]
[313742812,1707654643777,-150.0,0.00036142,2]
[313742813,1707654643786,-150.0,0.00036142,2]
[313742814,1707654643797,-150.0,0.00036144,2]
[313742815,1707654643806,-1136.42007224,0.00036151,3]
[313742816,1707654643815,-150.0,0.00036153,2]
[313742817,1707654643824,-150.0,0.00036163,2]
[313742818,1707654643832,-150.0,0.00036207,2]
[313742819,1707654643841,-150.0,0.0003622,2]
[313742821,1707654643851,-1249.3911065,0.0003622,2]
[313742823,1707654643860,-2052.0657888,0.00036301,30]
[313742825,1707654643869,-554.241259,0.00036317,4]
[313742827,1707654643878,-150.0,0.00036328,2]
[313742829,1707654643888,-203.53500204,0.000364,2]
[313742831,1707654643897,-152.0,0.00036423,4]
[313742833,1707654643907,-500.0,0.00036438,8]
[313742835,1707654643916,-196.76,0.00036438,2]
[313742837,1707654643926,-150.0,0.00036462,2]
[313742839,1707654643935,-150.0,0.00036482,2]
[313742840,1707654643944,-3176.40137514,0.00036504,9]
[313742843,1707654643954,-153.88584178,0.0003652,2]
[313742844,1707654643963,-1249.3911065,0.00036535,2]
[313742846,1707654643972,-150.0,0.00036569,2]
[313742848,1707654643981,-200.0,0.00036593,3]
[313742851,1707654643995,-5011.16939349,0.00036616,2]
[313742853,1707654644005,-5000.0,0.00036616,2]
[313742855,1707654644014,-150.0,0.00036619,2]
[313742856,1707654644023,-2008.72,0.0003662,2]
[313742858,1707654644033,-150.0,0.00036634,2]
[313742860,1707654644042,-150.0,0.00036663,2]
[313742862,1707654644051,-150.0,0.00036668,2]
[313742865,1707654644060,-150.0,0.00036678,2]
[313742866,1707654644071,-150.0,0.00036683,2]
[313742868,1707654644081,-150.0,0.00036698,2]
[313742870,1707654644090,-8149.497646,0.000367,2]
[313742872,1707654644100,-1000.0,0.00036705,2]
[313742875,1707654644109,-1000.0,0.00036705,2]
[313742877,1707654644118,-1000.0,0.00036705,2]
[313742879,1707654644127,-1000.0,0.00036705,2]
[313742881,1707654644136,-1000.0,0.00036705,2]
[313742882,1707654644145,-1000.0,0.00036705,2]
[313742884,1707654644154,-1000.0,0.00036705,2]
[313742886,1707654644164,-1000.0,0.00036705,2]
[313742889,1707654644173,-1000.0,0.00036705,2]
[313742891,1707654644183,-1000.0,0.00036705,2]
[313742893,1707654644191,-1000.0,0.00036705,2]
[313742895,1707654644201,-1000.0,0.00036705,2]
[313742897,1707654644210,-1000.0,0.00036705,2]
[313742898,1707654644219,-1000.0,0.00036705,2]
[313742901,1707654644229,-1000.0,0.00036705,2]
[313742903,1707654644238,-1000.0,0.00036705,2]
[313742904,1707654644247,-1000.0,0.00036705,2]
[313742906,1707654644257,-1000.0,0.00036705,2]
[313742909,1707654644267,-1000.0,0.00036705,2]
[313742911,1707654644276,-1000.0,0.00036705,2]
[313742913,1707654644285,-1000.0,0.00036705,2]
[313742915,1707654644295,-1000.0,0.00036705,2]
[313742917,1707654644304,-1000.0,0.00036705,2]
[313742919,1707654644313,-1000.0,0.00036705,2]
[313742921,1707654644322,-1000.0,0.00036705,2]
[313742923,1707654644331,-1000.0,0.00036705,2]
[313742924,1707654644340,-1000.0,0.00036705,2]
[313742926,1707654644350,-1000.0,0.00036705,2]
[313742928,1707654644359,-1000.0,0.00036705,2]
[313742930,1707654644368,-674.2948,0.00036705,2]
[313742932,1707654644377,-617.704,0.00036705,2]
[313742934,1707654644386,-150.0,0.00036712,2]
[313742936,1707654644395,-150.0,0.00036722,2]
[313742939,1707654644405,-150.0,0.00036725,2]
[313742941,1707654644415,-150.0,0.00036728,2]
[313742943,1707654644424,-150.0,0.0003675,2]
[313742945,1707654644434,-150.0,0.00036752,2]
[313742946,1707654644443,-150.0,0.00036785,2]
[313742949,1707654644452,-222.6601343,0.00036789,2]
[313742950,1707654644462,-200.0,0.000368,11]
[313742952,1707654644471,-237.924209,0.000368,5]
[313742954,1707654644480,-237.924209,0.000368,5]
[313742957,1707654644489,-237.92421,0.000368,5]
[313742959,1707654644499,-1986.607498,0.000368,5]
[313742960,1707654644508,-1986.607498,0.000368,5]
[313742962,1707654644517,-1986.607497,0.000368,5]
[313742964,1707654644526,-150.0,0.00036804,2]
[313742966,1707654644535,-442.8317491,0.0003682,2]
[313742968,1707654644544,-2426.59340995,0.0003682,2]
[313742969,1707654644553,-204.92374377,0.0003682,2]
[313742970,1707654644562,-14958.99881711,0.0003682,2]
[313742972,1707654644571,-500.0,0.00036849,10]
[313742973,1707654644580,-150.0,0.00036865,2]
[313742974,1707654644589,-150.0,0.00036867,2]
[313742975,1707654644599,-150.0,0.00036869,2]
[313742976,1707654644608,-150.0,0.0003687,2]
[313742977,1707654644617,-400.0,0.0003687,2]
[313742978,1707654644627,-150.0,0.00036877,2]
[313742979,1707654644636,-150.0,0.00036885,2]
[313742980,1707654644646,-419.91356886,0.00036887,2]
[313742981,1707654644655,-1844.68218607,0.00036887,4]
[313742982,1707654644664,-5355.45944021,0.00036887,4]
[313742983,1707654644674,-242.25045307,0.00036887,4]
[313742984,1707654644683,-311.20696792,0.00036887,4]
[313742985,1707654644692,-2423.97554816,0.00036887,4]
[313742986,1707654644701,-5743.06806054,0.00036887,4]
[313742987,1707654644710,-210.7249278,0.00036887,90]
[313742988,1707654644719,-528.78479227,0.00036887,4]
[313742989,1707654644728,-367.73648479,0.00036887,4]
[313742990,1707654644738,-264.5937254,0.00036887,4]
[313742991,1707654644747,-249.44375628,0.00036887,4]
[313742992,1707654644756,-28285.38817538,0.00036887,2]
[313742993,1707654644765,-298.27166747,0.00036887,4]
[313742995,1707654644774,-394.24298195,0.00036887,4]
[313742997,1707654644783,-266.05521495,0.00036887,4]
[313742998,1707654644791,-182.27763606,0.00036887,4]
[313742999,1707654644800,-3313.68237718,0.00036888,2]
[313743000,1707654644810,-150.01,0.00036888,2]
[313743001,1707654644820,-114155.72953832,0.00036889,4]
[313743002,1707654644830,-2000.0,0.00036889,2]
[313743003,1707654644839,-200.0,0.00036889,2]
[313743004,1707654644849,-1666.66666,0.00036889,2]
[313743005,1707654644858,-4000.0,0.00036889,2]
[313743006,1707654644868,-115378.0222053,0.00036894,2]
[313743007,1707654644877,-14922.9977274,0.00036894,2]
[313743008,1707654644886,-12259.3690711,0.00036894,2]
[313743010,1707654644899,-9595.7404148,0.00036894,2]
[313743012,1707654644908,-6932.1117585,0.00036894,2]
[313743014,1707654644917,-4268.4831023,0.00036894,2]
[313743016,1707654644927,-1604.854446,0.00036894,2]
[313743018,1707654644936,-150.0,0.00036894,2]
[313743020,1707654644945,-150.0,0.00036894,2]
[313743022,1707654644955,-8498.7554639,0.00036894,2]
[313743024,1707654644964,-6981.799621,0.00036894,2]
[313743026,1707654644973,-5464.8437781,0.00036894,2]
[313743028,1707654644983,-3947.8879351,0.00036894,2]
[313743030,1707654644996,-2430.9320922,0.00036894,2]
[313743032,1707654645005,-913.9762493,0.00036894,2]
[313743034,1707654645014,-57352.2738777,0.00036895,2]
[313743036,1707654645023,-44855.7851002,0.00036895,2]
[313743038,1707654645032,-32359.2963227,0.00036895,2]
[313743040,1707654645042,-19862.8075452,0.00036895,2]
[313743042,1707654645051,-94784.0228049,0.00036895,2]
[313743044,1707654645061,-74190.0234045,0.00036895,2]
[313743046,1707654645071,-53596.0240041,0.00036895,2]
[313743048,1707654645081,-33002.0246037,0.00036895,2]
[313743050,1707654645090,-27712.61787937,0.00036895,2]
[313743052,1707654645101,-300.0,0.000369,2]
[313743054,1707654645110,-199.0,0.000369,12]
[313743056,1707654645118,-200.0,0.000369,10]
[313743058,1707654645127,-200.0,0.000369,13]
[313743060,1707654645137,-453.83,0.00036917,5]
[313743062,1707654645146,-150.0,0.00036919,30]
[313743064,1707654645156,-150.0,0.00036919,2]
[313743066,1707654645165,-150.0,0.00036919,2]
[313743067,1707654645174,-151.0,0.0003692,7]
[313743068,1707654645183,-68940.23,0.0003692,3]
[313743069,1707654645192,-47619.41195816,0.0003692,3]
[313743070,1707654645757,-20047.660282,0.0003692,3]
[313743072,1707654645817,-1273.15775984,0.0003692,3]
[313743073,1707654645826,-5279.14905074,0.0003692,3]
[313743081,1707654646274,-506.05714573,0.00028685,2]
[313743082,1707654646285,-22907.76217532,0.00036,120]
[313743083,1707654646426,-218.168,0.00025566,2]
[313743084,1707654646437,-477.691457,0.00036,120]
[313743085,1707654646451,-465.85379155,0.00036,120]
[313743086,1707654646464,-2030.95450005,0.00036,120]
[313743088,1707654646477,-5014.80960012,0.00036,120]
[313743090,1707654646493,-9260.32006477,0.00036,120]
[313743096,1707654647041,-2694.02548994,0.0002469,2]
[313743097,1707654647052,-137111.06117158,0.00036,120]
[313743098,1707654647066,-1262.3,0.00036,120]
[313743099,1707654647079,-14550.0,0.00036,120]
[313743100,1707654647100,-12125.14880026,0.00036,120]
[313743101,1707654647226,-4859.7,0.00036,120]
[313743102,1707654647238,-1241.187302,0.00036,120]
[313743103,1707654647251,-72749.50880178,0.00036,120]
[313743104,1707654647265,-361.23519383,0.00036,120]
[313743105,1707654647278,-63191.00740029,0.00036,120]
[313743106,1707654647675,-1140.17680199,0.0002469,2]
[313743107,1707654647689,-1367.80188262,0.0002469,2]
[313743108,1707654647702,-266.85649147,0.0002469,2]
[313743109,1707654647755,-541.88479081,0.0002469,2]
[313743110,1707654647768,-723.50238996,0.0002469,2]
[313743111,1707654647779,-409.79455518,0.0002469,2]
[313743112,1707654647878,-704.20729416,0.00024689,2]
[313743113,1707654647888,-549.98308797,0.0002469,2]
[313743114,1707654647897,-1232.0,0.00025566,2]
[313743115,1707654647906,-1232.0,0.00028566,2]
[313743116,1707654647915,-899938.01645541,0.00036,120]
[313743117,1707654647927,-759037.92308846,0.00036,120]
[313743118,1707654647936,-23424.52954,0.00036894,2]
[313743119,1707654647945,-19243.4494861,0.00036894,2]
[313743120,1707654647955,-15062.3694322,0.00036894,2]
[313743121,1707654647964,-10881.2893783,0.00036894,2]
[313743122,1707654647973,-6700.2093244,0.00036894,2]
[313743123,1707654647982,-2519.1292705,0.00036894,2]
[313743124,1707654647994,-63661.08094926,0.0003692,3]
[313743125,1707654648003,-68940.23,0.0003692,3]
[313743126,1707654648013,-68940.23,0.0003692,3]
[313743127,1707654648022,-43001.10420675,0.0003692,3]
[313743128,1707654648098,-25939.12579325,0.0003692,3]
[313743129,1707654648108,-39476.1317528,0.0003692,3]
[313743130,1707654649384,-15547.95734127,0.0002275,2]
[313743131,1707654649396,-9034.99314861,0.0002275,2]
[313743132,1707654649408,-846.27509641,0.0002275,2]
[313743133,1707654649419,-35431.27411372,0.0002275,2]
[313743134,1707654649430,-990.7898335,0.0002275,2]
[313743135,1707654649442,-1058.1000002,0.0002275,2]
[313743136,1707654649453,-2314.4,0.0002275,2]
[313743137,1707654649465,-2558.03092,0.0002275,2]
[313743138,1707654649477,-4849.596658,0.0002275,2]
[313743140,1707654649490,-4992.17500001,0.0002275,2]
[313743141,1707654650260,-167376.40788828,0.0002275,2]
[313743142,1707654650270,-369.28154617,0.00027879,2]
[313743143,1707654650280,-2694.02548992,0.00030755,2]
[313743144,1707654650290,-506.05714573,0.00032679,2]
[313743145,1707654650299,-229.45,0.00036705,7]
[313743146,1707654650309,-29464.0982472,0.0003692,3]
[313743147,1707654650319,-68940.23,0.0003692,3]
[313743148,1707654650329,-68940.23,0.0003692,3]
[313743149,1707654650339,-68940.23,0.0003692,3]
[313743150,1707654650352,-6317.04276485,0.0003692,3]
[313743151,1707654650365,-62623.18723515,0.0003692,3]
[313743152,1707654650375,-68940.23,0.0003692,3]
[313743153,1707654650385,-68940.23,0.0003692,3]
[313743154,1707654650395,-68940.23,0.0003692,3]
[313743155,1707654650405,-68940.23,0.0003692,3]
[313743156,1707654650415,-68940.2869558,0.0003692,3]
[313743157,1707654650425,-151.0,0.0003692,7]
[313743158,1707654650435,-418.26,0.00036964,2]
[313743159,1707654650444,-421.81,0.00036964,2]
[313743160,1707654650454,-150.0,0.00036964,2]
[313743161,1707654650464,-411.41,0.00036964,2]
[313743162,1707654650474,-150.0,0.00036964,2]
[313743163,1707654650483,-150.0,0.00036964,2]
[313743164,1707654650493,-411.41,0.00036964,2]
[313743165,1707654650503,-150.0,0.00036964,2]
[313743166,1707654650512,-421.81,0.00036964,2]
[313743167,1707654650522,-150.0,0.00036964,2]
[313743168,1707654650531,-150.0,0.00036964,2]
[313743169,1707654650540,-418.26,0.00036964,2]
[313743170,1707654650550,-411.41,0.00036964,2]
[313743171,1707654650560,-421.81,0.00036964,2]
[313743172,1707654650569,-150.0,0.00036964,2]
[313743173,1707654650579,-150.0,0.00036964,2]
[313743174,1707654650588,-418.26,0.00036964,2]
[313743175,1707654650598,-421.81,0.00036964,2]
[313743176,1707654650607,-411.41,0.00036964,2]
[313743177,1707654650617,-160.29,0.00036964,2]
[313743178,1707654650626,-418.26,0.00036964,2]
[313743179,1707654650635,-411.41,0.00036964,2]
[313743180,1707654650644,-421.81,0.00036964,2]
[313743181,1707654650654,-418.26,0.00036964,2]
[313743182,1707654650663,-421.81,0.00036964,2]
[313743183,1707654650673,-411.41,0.00036964,2]
[313743184,1707654650682,-418.26,0.00036964,2]
[313743185,1707654650692,-210.52,0.00036964,2]
[313743186,1707654650701,-1311.0,0.0003698,120]
[313743187,1707654650711,-50000.0,0.00037,7]
[313743188,1707654650721,-353.74853843,0.00037,4]
[313743189,1707654650731,-793.73,0.00037,2]
[313743190,1707654650741,-300.0,0.00037,38]
[313743191,1707654650750,-2000.0,0.00037,2]
[313743192,1707654650760,-5000.0,0.00037,7]
[313743193,1707654650769,-1400.0,0.00037,7]
[313743194,1707654650779,-12587.0,0.00037,2]
[313743195,1707654650789,-150.0,0.00037,50]
[313743196,1707654650800,-1550.0,0.00037,3]
[313743197,1707654651063,-2856.63251527,0.00037011,2]
[313743198,1707654651074,-150.0,0.00037059,2]
[313743199,1707654651093,-4458.55938467,0.00037075,2]
[313743200,1707654651111,-736.19737716,0.00037075,2]
[313743201,1707654651123,-4805.24323817,0.00037075,2]
[313743202,1707654651133,-473.83371292,0.0003708,27]
[313743203,1707654651146,-3005.95914031,0.0003708,27]
[313743204,1707654651158,-1520.20714677,0.0003708,27]
[313743205,1707654651168,-1000.0,0.000372,10]
[313743206,1707654651177,-150.0,0.000372,26]
[313743207,1707654651188,-656.21,0.000372,3]
[313743208,1707654651198,-656.21,0.000372,3]
[313743209,1707654651207,-656.21,0.000372,3]
[313743210,1707654651217,-656.21,0.000372,3]
[313743211,1707654651227,-656.21,0.000372,3]
[313743212,1707654651237,-656.21,0.000372,3]
[313743213,1707654651247,-656.21,0.000372,3]
[313743214,1707654651257,-656.21,0.000372,3]
[313743215,1707654651266,-656.21,0.000372,3]
[313743216,1707654651276,-656.21,0.000372,3]
[313743217,1707654651286,-656.21,0.000372,3]
[313743218,1707654651295,-506.63178205,0.000372,3]
[313743219,1707654651319,-149.57821795,0.000372,3]
[313743220,1707654651329,-431.80394484,0.000372,3]
[313743221,1707654651342,-224.40605516,0.000372,3]
[313743222,1707654651352,-113.13691842,0.000372,3]
[313743223,1707654651366,-543.07308158,0.000372,3]
[313743224,1707654651377,-656.21,0.000372,3]
[313743225,1707654651386,-656.21,0.000372,3]
[313743226,1707654651396,-656.21,0.000372,3]
[313743227,1707654651406,-656.21,0.000372,3]
[313743228,1707654651416,-656.21,0.000372,3]
[313743229,1707654651425,-656.21,0.000372,3]
[313743230,1707654651435,-1249.3911066,0.00037217,2]
[313743231,1707654651445,-151.50624563,0.00037233,2]
[313743232,1707654651455,-1000.0,0.00037248,10]
[313743233,1707654651464,-1000.0,0.00037248,10]
[313743234,1707654651474,-1000.0,0.00037248,10]
[313743235,1707654651484,-12408.0252033,0.00037253,2]
[313743236,1707654651493,-2000.0,0.00037258,2]
[313743237,1707654651503,-200.0,0.00037258,2]
[313743238,1707654651513,-500.0,0.0003726,12]
[313743239,1707654651523,-24793.04642066,0.00037279,15]
[313743240,1707654651536,-699.91681535,0.00037279,15]
[313743241,1707654651548,-463.3190039,0.00037279,15]
[313743242,1707654651634,-24043.71776009,0.00037279,15]
[313743243,1707654651644,-5000.0,0.0003728,28]
[313743244,1707654651653,-200.0,0.000373,11]
[313743245,1707654651663,-196.40248034,0.00037306,2]
[313743246,1707654651673,-50000.0,0.00037359,15]
[313743247,1707654651682,-1724.0,0.000374,30]
[313743248,1707654651692,-1781.63686066,0.00037406,15]
[313743249,1707654651705,-45069.62043339,0.00037406,15]
[313743250,1707654651718,-3148.74270595,0.00037406,15]
[313743251,1707654651728,-123.47937924,0.00037406,15]
[313743252,1707654651740,-2248.46080941,0.00037406,15]
[313743253,1707654651752,-3153.81405,0.00037406,15]
[313743254,1707654651766,-4454.257192,0.00037406,15]
[313743255,1707654651779,-547.62,0.00037406,15]
[313743256,1707654651790,-866.00069912,0.00037406,15]
[313743258,1707654676612,1045.1529,0.00022309,2]
[313743268,1707655832339,-438.73888158,0.00022688,2]
[313743269,1707655832351,-1423.03842203,0.00022688,2]
[313743270,1707655832360,-322.18986417,0.00022689,2]
[313743271,1707655832370,-4659.65449296,0.00022689,2]
[313743272,1707655832379,-3160.86966604,0.00022689,2]
[313743273,1707655832388,-402.59329502,0.0002269,2]
[313743274,1707655832397,-539.18725393,0.0002269,2]
[313743275,1707655832408,-1046.72092174,0.00022691,2]
[313743276,1707655832417,-205.52529998,0.00022692,2]
[313743277,1707655832426,-36143.70190612,0.00022693,2]
[313743278,1707655832462,-159661.38446088,0.00022693,2]
[313743279,1707655832471,-11321.00859619,0.00022693,2]
[313743280,1707655832480,-150.0,0.00022699,2]
[313743281,1707655832489,-32000.67437764,0.000227,4]
[313743282,1707655832498,-698.06254983,0.00022746,2]
[313743283,1707655832507,-1816.12904558,0.00022746,2]
[313743284,1707655832516,-155.6658,0.00022746,2]
[313743285,1707655832525,-431.5020231,0.00022746,2]
[313743286,1707655832535,-447.95169275,0.00022746,2]
[313743287,1707655832544,-349.68076355,0.00022746,2]
[313743288,1707655832553,-155.0,0.00022746,2]
[313743289,1707655832563,-156.77297195,0.00022746,2]
[313743290,1707655832572,-511.6448832,0.00022746,2]
[313743291,1707655832582,-3336.34917432,0.00022746,2]
[313743292,1707655832591,-275.04808782,0.00022746,2]
[313743293,1707655832601,-418.01197581,0.00022746,2]
[313743295,1707655832610,-155.0,0.00022746,2]
[313743297,1707655832619,-230.02103007,0.00022746,2]
[313743299,1707655832629,-170.56684723,0.00022746,2]
[313743300,1707655832638,-155.20630276,0.00022746,2]
[313743301,1707655832648,-942.94638572,0.00022746,2]
[313743302,1707655832657,-359.04499878,0.00022746,2]
[313743304,1707655832667,-158.36561926,0.00022746,2]
[313743306,1707655832675,-305.46768678,0.00022746,2]
[313743308,1707655832684,-1054.05254767,0.00022746,2]
[313743310,1707655832694,-1890.92413056,0.00022747,2]
[313743312,1707655832703,-34693.24178966,0.00022748,2]
[313743314,1707655832712,-726.46,0.00022749,2]
[313743316,1707655832722,-224.38899878,0.00022749,2]
[313743318,1707655832731,-4644.1804937,0.00022749,2]
[313743320,1707655832741,-1000.0,0.0002275,2]
[313743322,1707655832751,-4169.6923,0.0002275,2]
[313743324,1707655832760,-500.0,0.0002275,2]
[313743326,1707655832770,-2607.54162794,0.00023,2]
[313743327,1707655832779,-2000.0,0.00024689,3]
[313743328,1707655832790,-17802.0,0.000247,2]
[313743329,1707655832799,-504.79,0.000247,2]
[313743330,1707655833047,-499.99,0.000247,2]
[313743331,1707655833124,-180.32,0.00024895,2]
[313743332,1707655833134,-210.0,0.00024969,2]
[313743333,1707655833143,-511.72114891,0.00025,2]
[313743334,1707655833153,-324.41864448,0.00025,2]
[313743335,1707655833164,-200.0,0.00025,2]
[313743336,1707655833173,-1250.0,0.00025,3]
[313743337,1707655833183,-938.20137126,0.00025,2]
[313743338,1707655833193,-150.0,0.00025,2]
[313743339,1707655833202,-946.10396075,0.00025,2]
[313743340,1707655833211,-1591.80252541,0.00025,2]
[313743341,1707655833220,-305.09660322,0.00025,2]
[313743342,1707655833230,-168.26749515,0.00025,2]
[313743343,1707655833239,-500.0,0.00025572,2]
[313743344,1707655833249,-245.12,0.0002583,2]
[313743345,1707655833259,-7147.17,0.00026813,2]
[313743346,1707655833268,-20313.3805,0.00026899,2]
[313743347,1707655833278,-453.0,0.00027,2]
[313743348,1707655833287,-164.167,0.00027,2]
[313743349,1707655833297,-2285.0,0.00027,2]
[313743350,1707655833306,-151.358,0.00027,2]
[313743351,1707655833316,-478.225,0.00027,2]
[313743352,1707655833327,-775.649,0.00027,2]
[313743353,1707655833339,-1911.688,0.00027,2]
[313743354,1707655833348,-151.091,0.00027,2]
[313743355,1707655833357,-205.907,0.00027,2]
[313743356,1707655833367,-181.629,0.00027,2]
[313743357,1707655833377,-1300.0,0.00027,3]
[313743358,1707655833388,-203.38008899,0.00027009,3]
[313743359,1707655833397,-446.42606112,0.00027009,3]
[313743360,1707655833406,-245.53433361,0.00027009,3]
[313743361,1707655833415,-479.93054397,0.00027009,3]
[313743362,1707655833425,-263.96179918,0.00027009,3]
[313743363,1707655833434,-250.16670511,0.00027009,3]
[313743364,1707655833442,-741.80755036,0.00027009,3]
[313743365,1707655833452,-1018.41797961,0.00027009,3]
[313743366,1707655833461,-263.94181816,0.00027009,3]
[313743367,1707655833470,-997.52727357,0.00027009,3]
[313743368,1707655833479,-151.74,0.00027014,2]
[313743369,1707655833488,-172.59,0.00027058,2]
[313743370,1707655833498,-180.32,0.00027159,2]
[313743371,1707655833507,-250.0,0.00027328,2]
[313743372,1707655833516,-151.74,0.00027366,2]
[313743373,1707655833525,-245.12,0.00027474,2]
[313743374,1707655833535,-155.0,0.000275,2]
[313743375,1707655833544,-151.74,0.00027718,2]
[313743376,1707655833554,-800.0,0.00027753,2]
[313743377,1707655833564,-773.46,0.00027755,2]
[313743378,1707655833573,-458.61442053,0.00027998,2]
[313743379,1707655833583,-278.73949976,0.00027998,2]